Cogmind - Beta 11.1 @@@ ROGUE MODE // 2022.05.31 @ 19:04:58 Player: eldritch Result: Self-destructed Performance ------------- Evolutions (1) 500 Regions Visited (3) 600 Robots Destroyed (28) 140 Value Destroyed (582) 582 Prototype IDs (0) 0 Alien Tech Used (0) 0 Bonus (0) 0 TOTAL SCORE: 1822 Bonus ------- None Cogmind --------- Core Integrity 386/400 Matter 57/300 Energy 265/265 System Corruption 0% Temperature Warm (161) Movement Walking (120) Location -9/Materials Parts ------- > --- POWER (1) -------- Improved Ion Engine > --- PROPULSION (3) --- Aluminum Leg Aluminum Leg Aluminum Leg > --- UTILITY (3) ------ Disposable Heat Sink Medium Storage Unit Improved Light Armor Plating > --- WEAPON (2) ------- Particle Gun High-powered Shotgun > --- INVENTORY (10) --- Ion Engine Light Treads Light Treads Aluminum Leg Structural Scanner Seismic Detector Medium Laser Grenade Launcher Improved Grenade Launcher Great Maul Peak State ------------ > --- POWER ------------ Improved Ion Engine > --- PROPULSION ------- Aluminum Leg Aluminum Leg Aluminum Leg > --- UTILITY ---------- Disposable Heat Sink Medium Storage Unit Improved Light Armor Plating > --- WEAPON ----------- High-powered Shotgun Great Maul > --- INVENTORY -------- Ion Engine Light Treads Light Treads Aluminum Leg Structural Scanner Seismic Detector Medium Laser Particle Gun Grenade Launcher Improved Grenade Launcher [Rating: 18] Favorites ----------- Power Ion Engine Engine Ion Engine Propulsion Aluminum Leg Leg Aluminum Leg Utility Small Storage Unit Device Seismic Detector Storage Small Storage Unit Processor Transport Network Coupler Protection Improved Light Armor Plating Weapon Particle Gun Energy Gun Particle Gun Ballistic Gun Assault Rifle Launcher Grenade Launcher Impact Weapon Great Maul Build | -11 -10 -10 -9 ------- Run | Scr Mat Min Mat Slots Evolved 2 | . . . 2 Power . | . . . . Propulsion 1 | . . . 1 Utility 1 | . . . 1 Weapon . | . . . . Parts Attached 26 | . 13 5 8 Power 2 | . . 1 1 Engine 2 | . . 1 1 Core . | . . . . Reactor . | . . . . Propulsion 6 | . 5 . 1 Treads . | . . . . Leg 6 | . 5 . 1 Wheel . | . . . . Hover . | . . . . Flight . | . . . . Utility 8 | . 5 1 2 Device 5 | . 3 1 1 Storage 1 | . 1 . . Processor 1 | . 1 . . Hackware . | . . . . Protection 1 | . . . 1 Artifact . | . . . . Weapon 10 | . 3 3 4 Energy Gun 4 | . 2 . 2 Energy Cannon . | . . . . Ballistic Gun 1 | . . 1 . Ballistic Cannon . | . . . . Launcher 3 | . 1 1 1 Special Weapon . | . . . . Impact Weapon 2 | . . 1 1 Slashing Weapon . | . . . . Piercing Weapon . | . . . . Special Melee Weapon . | . . . . Unidentified Prototypes . | . . . . Corrupted Parts 3 | . . 3 . System Corruption 12 | . . 12 . Parts Lost 1 | . . 1 . Power 1 | . . 1 . Propulsion . | . . . . Utility . | . . . . Weapon . | . . . . Highest Loss Streak 1 | . . 1 . To Critical Strikes . | . . . . Average Slot Usage (%) 98 | . 97 99 100 Engine 13 | . 14 13 11 Leg 28 | . 28 28 33 Device 7 | . 5 14 11 Storage 13 | . 14 14 11 Processor 4 | . 6 . . Protection 1 | . . . 11 Energy Gun 12 | . 14 14 5 Ballistic Gun 11 | . 14 . 11 Launcher 2 | . . 14 . Impact Weapon 1 | . . . 5 Naked Turns . | . . . . Heaviest Build 28 | 13 21 23 28 Greatest Support 30 | 20 20 20 30 Greatest Overweight (x) 1 | . 1 1 . Average Overweight (x) . | . . . . Largest Inventory Capacity 10 | 8 10 10 10 Average Capacity 8 | 8 8 10 10 Most Carried 10 | 7 10 10 10 Average Carried 8 | 6 8 9 9 Final Capacity 10 | 8 10 10 10 Final Carried 10 | 7 10 10 10 Class Distribution -------------------- 86% | Mutant 13% | Scavenger-Mutant Dominant Class ---------------- Mutant | -10/Materials Mutant | -10/Mines Mutant | -9/Materials Resources | -11 -10 -10 -9 ----------- Run | Scr Mat Min Mat Matter Collected 497 | 212 221 . 64 Remotely . | . . . . Salvage Created 846 | 18 688 . 140 Parts 51 | 1 38 . 12 Haulers Intercepted 2 | . 2 . . Recyclers Shooed . | . . . . Parts Field Recycled . | . . . . Retrieved Matter . | . . . . Parts Self-Destructed . | . . . . Prevented . | . . . . Kills | -11 -10 -10 -9 ------- Run | Scr Mat Min Mat Combat Hostiles Destroyed 21 | . 14 . 7 Guns 17 | . 14 . 3 AOE 3 | . . . 3 Classes Destroyed 8 | 1 6 . 1 Worker 1 | . 1 . . Tunneler 1 | 1 . . . Hauler 2 | . 2 . . Recycler 2 | . 2 . . Operator 1 | . 1 . . Swarmer 9 | . 6 . 3 Grunt 11 | . 8 . 3 Sentry 1 | . . . 1 Best Kill Streak 4 | 1 4 . 3 Combat Bots Only 4 | . 4 . 3 Max Kills in Single Turn 2 | 1 1 . 2 Gunslinging . | . . . . Exploded 2 | . . . 2 Melee . | . . . . Uniques/NPCs Destroyed . | . . . . Combat | -11 -10 -10 -9 -------- Run | Scr Mat Min Mat Damage Taken 1007 | . 557 65 385 Core 137 | . 123 . 14 Absorbed by Shields . | . . . . Core Remaining (%) 75 | 100 . 50 . Volleys Fired 84 | 4 63 . 17 Largest 2 | 2 2 . 2 Hottest 90 | 60 85 . 90 Shots Fired 162 | 8 126 . 28 Gun 160 | 8 126 . 26 Cannon . | . . . . Launcher 2 | . . . 2 Special . | . . . . Kinetic 82 | 4 63 . 15 Thermal 78 | 4 63 . 11 Explosive 2 | . . . 2 Electromagnetic . | . . . . Robot Hit Streak 11 | 2 7 . 11 Robot Miss Streak 4 | 2 4 . 3 Penetration Max . | . . . . Secondary Targets . | . . . . Shots Hit Robots 106 | 5 78 . 23 Core Hits 46 | 2 33 . 11 Critical Kills . | . . . . Critical Parts Destroyed 2 | . 1 . 1 Critical Strikes 3 | . 2 . 1 Burn 1 | . 1 . . Destroy 1 | . 1 . . Smash 1 | . . . 1 Melee Attacks 5 | . . . 5 Impact 5 | . . . 5 Slashing . | . . . . Piercing . | . . . . Sneak Attacks . | . . . . Combat Hostiles . | . . . . Follow-up Attacks . | . . . . Damage Inflicted 1798 | 73 1086 . 639 Guns 1496 | 73 1079 . 344 Cannons . | . . . . Explosions 152 | . . . 152 Melee 143 | . . . 143 Ramming 7 | . 7 . . Kinetic 738 | 42 497 . 199 Thermal 758 | 31 582 . 145 Explosive 152 | . . . 152 Electromagnetic . | . . . . Impact 143 | . . . 143 Slashing . | . . . . Piercing . | . . . . Highest Corruption 12 | . . 12 . Average Corruption 6 | . . 6 . Corruption Purged . | . . . . Corruption Blocked . | . . . . Overload Shots . | . . . . Overflow Damage 55 | . . . 55 Projectiles . | . . . . Explosions . | . . . . Melee 55 | . . . 55 Knockbacks . | . . . . Impact . | . . . . Kinetic . | . . . . Secondary . | . . . . Self-Inflicted Damage 37 | . . . 37 Shots 1 | . . . 1 Rammed . | . . . . Targets Rammed 3 | . 3 . . Kicked 3 | . 3 . . Crushed . | . . . . Highest Temperature 197 | . 162 . 197 Average Temperature 60 | . 48 . 123 Received Heat Transfer 333 | . 183 . 150 Siege Activations . | . . . . Robots Corrupted . | . . . . Combat Hostiles . | . . . . Parts Fried 1 | . . . 1 Impact Corruptions 1 | . . . 1 Robots Melted . | . . . . Combat Hostiles . | . . . . Parts Melted 1 | . 1 . . Heat Transferred 1843 | 75 1435 . 333 Parts Sabotaged . | . . . . Parts Stolen . | . . . . Parts Stripped . | . . . . Power Chain Reactions . | . . . . Missiles Intercepted . | . . . . Alert | -11 -10 -10 -9 ------- Run | Scr Mat Min Mat Peak Influence 340 | 5 247 96 340 Initial 96 | . 3 96 33 Average 133 | 2 127 89 216 Maximum Alert Level 1 | . 1 . 1 Low Security (%) 75 | 100 82 100 27 Level 1 24 | . 17 . 72 Level 2 . | . . . . Level 3 . | . . . . Level 4 . | . . . . Level 5 . | . . . . High Security . | . . . . Max Security . | . . . . Squads Dispatched 3 | . 2 . 1 Investigation 1 | . . . 1 Extermination . | . . . . Reinforcement 2 | . 2 . . Assault . | . . . . Garrison . | . . . . Intercept . | . . . . Searches Triggered . | . . . . Construction Impeded . | . . . . Haulers Reinforced . | . . . . Active Scanning Responses . | . . . . Cargo Convoy Interrupts . | . . . . Stealth | -11 -10 -10 -9 --------- Run | Scr Mat Min Mat Distress Signals 5 | . 2 . 3 Communications Jammed . | . . . . Distress Signals . | . . . . Times Spotted 40 | . 27 . 13 Peak Tracking Total 6 | . 6 . 6 Tactical Retreats . | . . . . Traps | -11 -10 -10 -9 ------- Run | Scr Mat Min Mat Traps Triggered 2 | . 1 1 . Indirectly . | . . . . Trap Hack Attempts . | . . . . Triggered . | . . . . Disarmed . | . . . . Reprogrammed . | . . . . Reused . | . . . . Traps Extracted . | . . . . Installed . | . . . . Triggered . | . . . . Machines | -11 -10 -10 -9 ---------- Run | Scr Mat Min Mat Machines Disabled 2 | . . . 2 Max in Single Turn 1 | . . . 1 Machines Sabotaged . | . . . . Garrisons Compromised . | . . . . Overloaded Fab Kills . | . . . . Hacking | -11 -10 -10 -9 --------- Run | Scr Mat Min Mat Machines Accessed 5 | . 2 1 2 Terminals 4 | . 2 . 2 Fabricators . | . . . . Repair Stations . | . . . . Recycling Units . | . . . . Scanalyzers . | . . . . Garrison Access . | . . . . Total Hacks 16 | . 7 1 8 Successful 11 | . 6 1 4 Failed 4 | . 1 . 3 Catastrophic . | . . . . Database Lockouts 1 | . . . 1 Manual 6 | . 1 . 5 Terminals 15 | . 7 . 8 Fabricators . | . . . . Repair Stations . | . . . . Recycling Units . | . . . . Scanalyzers . | . . . . Garrison Access . | . . . . Terminal Hacks 9 | . 5 1 3 Record 1 | . 1 . . Robot Analysis 1 | . . . 1 Open Door 1 | . . 1 . Terminal Index 2 | . 1 . 1 Alert Level 1 | . 1 . . Unreport Threat 1 | . 1 . . Dispatch Records 1 | . . . 1 Hauler Manifests 1 | . 1 . . Fabricator Hacks . | . . . . Repair Station Hacks . | . . . . Recycling Unit Hacks . | . . . . Scanalyzer . | . . . . Garrison Access Hacks . | . . . . Unauthorized Hacks 2 | . 1 . 1 Terminals 2 | . 1 . 1 Botnet 2 | . 1 . 1 Fabricators . | . . . . Repair Stations . | . . . . Recycling Units . | . . . . Scanalyzers . | . . . . Garrison Access . | . . . . Data Cores Recovered . | . . . . Used . | . . . . Hacking Detections 3 | . 1 . 2 Full Trace Events 1 | . . . 1 Feedback Events . | . . . . Feedback Blocked . | . . . . Robot Schematics Acquired . | . . . . Robots Built . | . . . . Authchips . | . . . . Time . | . . . . Total Robot Build Rating . | . . . . Part Schematics Acquired . | . . . . Parts Built . | . . . . Authchips . | . . . . Time . | . . . . Total Part Build Rating . | . . . . Parts Repaired . | . . . . Time . | . . . . Parts Recycled . | . . . . Recycled Matter . | . . . . Retrieved Matter . | . . . . Retrieved Components . | . . . . Parts Scanalyzed . | . . . . Part Schematics Acquired . | . . . . Parts Damaged . | . . . . Bothacking | -11 -10 -10 -9 ------------ Run | Scr Mat Min Mat Used RIF Installer . | . . . . Robots Hacked . | . . . . Non-combat . | . . . . Combat . | . . . . Robot Hacks Applied . | . . . . Relay Couplers Released . | . . . . Fabnet Peak Effective % . | . . . . Robots Rewired . | . . . . Allies Hacked . | . . . . Hacks Repelled . | . . . . Allies | -11 -10 -10 -9 -------- Run | Scr Mat Min Mat Total Allies . | . . . . Largest Group . | . . . . Highest-Rated Group . | . . . . Highest-Rated Ally . | . . . . Total Orders . | . . . . Ally Attacks . | . . . . Total Damage . | . . . . Kills . | . . . . Allies Corrupted . | . . . . Allies Melted . | . . . . Intel | -11 -10 -10 -9 ------- Run | Scr Mat Min Mat Robot Analysis Total 1 | . . . 1 Derelict Logs Recovered 1 | . . 1 . Drone Launches . | . . . . Drone Recoveries . | . . . . Exploration | -11 -10 -10 -9 ------------- Run | Scr Mat Min Mat Turns Passed 1226 | 33 792 190 211 Spaces Moved 643 | 17 456 97 73 Core . | . . . . Treads . | . . . . Legs 643 | 17 456 97 73 Wheels . | . . . . Hover . | . . . . Flight . | . . . . Fastest Speed 120 | 120 120 120 120 Average Speed 130 | 120 120 184 120 Slowest Speed 190 | 120 190 190 120 Overloaded Moves . | . . . . Propulsion Burnouts . | . . . . Robots Hopped . | . . . . Cave-ins Triggered . | . . . . Exploration Rate (%) 23 | 3 49 25 15 Regions Visited 3 Branch Regions 1 Pre-discovered Areas 2 | . . 2 . Known Exits Taken . | . . . . Unknown Exits Taken 3 | 1 1 1 . Scrap Searched . | . . . . Spaces Dug 24 | . . . 24 Terrain Destroyed 24 | . . . 24 Melee 1 | . . . 1 Projectile . | . . . . AOE 23 | . . . 23 Terrain Rammed . | . . . . Walls Destroyed . | . . . . Machines Disabled . | . . . . Actions | -11 -10 -10 -9 --------- Run | Scr Mat Min Mat Total 860 | 21 577 107 155 Wait 74 | . 23 . 51 Move 640 | 16 455 96 73 Hop . | . . . . Pick Up 13 | 1 7 4 1 Fast Attach 2 | . 2 . . Attach 3 | . . 1 2 Detach . | . . . . Swap 21 | . 11 4 6 Drop 15 | . 13 2 . Fire 84 | 4 63 . 17 Melee 5 | . . . 5 Ram . | . . . . Kick 3 | . 3 . . Crush . | . . . . Escape Stasis . | . . . . Rewire . | . . . . Trap . | . . . . Miscellaneous . | . . . . Route ------- -11/Scrapyard -10/Materials (discovered 3 exits: *Mat x2 / *Min) -10/Mines -9/Materials History --------- Turn | Location | Event 1 | -11/Scrapyard | Discovered new exit (range 3) 34 | -11/Scrapyard | Entered Materials 306 | -10/Materials | Build established: Mutant 325 | -10/Materials | Discovered new exit (range 11) 409 | -10/Materials | Discovered new exit (range 8) 596 | -10/Materials | Discovered new exit (range 16) 826 | -10/Materials | Entered Mines 827 | -10/Mines | Learned location of Storage (-9) 888 | -10/Mines | Met a Derelict who couldn't figure out how to use a Trap Extractor 964 | -10/Mines | Learned location of Mines (-8) 981 | -10/Mines | Discovered new exit (range 15) 1015 | -10/Mines | System corruption reached 10% 1016 | -10/Mines | Entered Materials 1016 | -9/Materials | Evolved 2 slots: Propulsion x1, Utility x1 1039 | -9/Materials | Central database locked down 1227 | -9/Materials | Self-destructed Last Messages --------------- Awaiting botnet instructions. 01039_ ALERT: Central database lockdown, local access denied. 01045_ Acquired Disposable Heat Sink. 01072_ Terminal disabled. 01072_ S-10 Pest destroyed. 01074_ Electrolysis Chamber disabled. 01094_ 27-DIO(g) suffers critical hit (Burn). 01097_ Processing Tank disabled. 01124_ G-34 Mercenary suffers critical hit (Smash). 01124_ Destroyed Heat Sink. 01124_ G-34 Mercenary system corrupted by crushing effect. 01125_ G-34 Mercenary system terminally corrupted. 01125_ Aluminum Leg fried. 01143_ Y-45 Defender destroyed. 01145_ Acquired 40 matter. 01148_ Acquired 24 matter. 01157_ W-16 Scout sends out distress signal. 01175_ G-34 Mercenary destroyed. 01179_ W-16 Scout sends out distress signal. 01209_ G-34 Mercenary destroyed. Map ----- +----------------------------------------------------+ | ?????????????????????????????????????????????????? | | ?????????????????????????????????????????????????? | | ?????????????????????????????????????????????????? | | ?????????????????????????????????????????????????? | | ????????????????????????????????????????????????## | | ????????????????????????????????????????????##### | | ????????????????????????????????????????????# # | | ????????????????????????????????????????????# # | | ????????????????????????????????????????????# # | | ????????????????????????????????????????????# + | | ??????????????????????##########??######?##?# # | | ??????????????????????# #??# ## # | | ??????????????????????# """ #??# """"" ## # | | ??????????????????????# """ #??# """"" #T ## | | ??????????????????????#[ """ #??# """"" ## #? | | ??????????????????????# [#??# ## #? | | ??????????????????????# """ [#### """"" ## #? | | ??????????????????????# """= + !+ """"" ## ## | | ???????????????# ?????# """ ###" """ " ## ## | | ????????????????? ???# ]#?## # | | ????????????#######/######+########### # | | ??????????? !%= =%* | | ??????????? ![ = | | ??????????? g %=* [ | | ???????????# ########g############ | | ???????????? ???????# @ #??# | | ??????????????????????# #??# "" ####### | | ??????????????????????# #??# """ #?????# | | ??????????????????????# #??# """ #?????? | | ??????????????????????#!!! #??# #?????? | | ??????????????????????#!! #??# ?????? | | ??????????????????????#!! = #??? "Y" #?????? | | ??????????????????????# #??? """ #?????? | | ??????????????????????# #??? #?????? | | ??????????????????????##########??##########?????? | | ?????????????????????????????????????????????????? | | ?????????????????????????????????????????????????? | | ?????????????????????????????????????????????????? | | ?????????????????????????????????????????????????? | | ?????????????????????????????????????????????????? | | ?????????????????????????????????????????????????? | | ?????????????????????????????????????????????????? | | ?????????????????????????????????????????????????? | | ?????????????????????????????????????????????????? | | ?????????????????????????????????????????????????? | | ?????????????????????????????????????????????????? | | ?????????????????????????????????????????????????? | | ?????????????????????????????????????????????????? | | ?????????????????????????????????????????????????? | | ?????????????????????????????????????????????????? | +----------------------------------------------------+ Best States ------------- Heat Dissipation 35 Coolant Potential 50 Energy Generation 12 Energy Capacity 265 Matter Stores 300 Matter Capacity 300 Sight Range 16 Terrain Scan Density 10 Armor Coverage 150 Evasion (%) 55 Item Schematics ----------------- None Robot Schematics ------------------ None Fabricated ------------ Nothing Alien Tech Used ----------------- None Achievements -------------- None Challenges ------------ None Game ------ Seed WeightRemoteNeutralizer Manual? 0 Play Time 00:14:41 Cumulative 246.2 hours Start 2022.05.31 @ 18:46:04 End 2022.05.31 @ 19:04:58 Sessions 1 Manual Loads 0 Difficulty Rogue Special Mode None Game No. 559 Rogue 559 Adventurer 0 Explorer 0 Win Type - Total 5 Types 4/0/0/1/0/0/0/0/0 Lore% 58 Gallery% 61 Achievement% 56 Wizard Run 0 Options --------- ASCII 0 Keyboard 0 Movement Numpad Keybinds 0 Fullscreen 1 Font 16/SmallcapsGlow Map View 75x55 Tactical HUD 1 Map Filters NONE Filters NONE Steam 1 RUN: 09771f0e-1fa4-479e-9fb3-688582968d78